{"text_format":"1","workbook":"xlsx","n_sheets":3,"sheets":["العملاء","Feuil1","Feuil2"],"not_rendered":{"charts":0,"images":0,"macros":1,"external_links":0,"defined_names":2,"comments":0,"pivot_tables":0},"unopened":[],"bounds":{"document_bytes":16777216,"sheet_cells":100000,"rows_first":2000,"rows_last":500,"rows_between":2000,"halvings":0,"cell_chars":16384,"cell_head_chars":4096},"cells_cut":0,"cells_raw":0,"read":"whole","date_system":"1900"}

{"sheet":"العملاء","index":0,"n_rows":30,"n_cols":19,"rows_kept":30,"cut":false,"hidden":false,"merged":[]}
["الرقم","رقم الحوالة","المادة","المستفيد","تسمية الشركة","العنوان","حساب جاري","مركز الشيكات","المؤسسة المصرفية","وكالة","حساب مصرفي","المستندات   المثبتة للنفقة","موضوع الصرف","المبلغ","تسمية المشروع","نوع البرنامج","ملاحظة"]
[1,"04",231,"محمد جمال","مؤسسة الأشغال العمومية","حي الجديد رقم 12 - بوقادير الشلف",null,"الجزائر","BADR","الجزائر","00300268101563300093","وضعية الأشغال رقم 01 المؤرخة في : 2019/01/28+ أمر بخدمة + محضر إستلام مؤقت +ب طاقة إلتزام رقم 01 و 02","تسوية وضعية الأشغال رقم 01 المؤرخة في 2019/01/28",593391.72,"إعادة الكتــــامة لقسميــن بمدرسة أحمد ","تمويل ذاتي"]
[2,"03",231," دريزي الشارف","مؤسسة أشغال البناء في مختلف مراحله","تجزئة منطقة النشاطات برطالي الجزء الثاني رقم :41 الشطية",null,"الجزائر","البنك الوطني الجزائري","الجزائر","00100260030000020027","وضعية الأشغال رقم 01 المؤرخة في :2019/01/28+ أمر بخدمة + محضر إستلام مؤقت + بطاقةالإلتزام رقم : 01 و 02","تسوية وضعية الأشغال رقم 01 المؤرخة في 2019/01/28",485520,"إعادة الكتامة لثلاثة أقسام بمدرسة علي","تمويل ذاتي",null,null,{"$f":"SEARCH(\"\",B1)=1","v":true}]
[3,null,230,"المؤسسة الوطنية للإتصال النشر والإشهار","ANEP"," 50شارع خليفة بوخالفة - الجزائر",null,"الجزائر ","بنك التنمية المحلية","الأمير عبد القادر - الجزائر","00500170401782603257","فاتورة رقم 840866","تسوية فاتورة رقم840866  المؤرخة في : 2018/12/31   ",55758.64,"دراسة، متابعة وتهيئة الحديقة ","PCD"]
[5,"04",231,"محمد جمال","مؤسسة الأشغال العمومية","حي الجديد رقم 12 - بوقادير الشلف",null,"الجزائر","BADR","حيدرة","00300268101563300093","وضعية الأشغال رقم 01 المؤرخة في : 2019/01/28+ أمر بخدمة + محضر إستلام مؤقت +ب طاقة إلتزام رقم 01 و 02","تسوية وضعية الأشغال رقم 01 المؤرخة في 2019/01/28",20000,"إعادة الكتــــامة لقسميــن بمدرسة أحمد ","تمويل ذاتي"]
[6,"04",231,"محمد جمال","مؤسسة الأشغال العمومية","حي الجديد رقم 12 - بوقادير الشلف",null,"الجزائر","BADR","حيدرة","00300268101563300093","وضعية الأشغال رقم 01 المؤرخة في : 2019/01/28+ أمر بخدمة + محضر إستلام مؤقت +ب طاقة إلتزام رقم 01 و 02","تسوية وضعية الأشغال رقم 01 المؤرخة في 2019/01/28",30000,"إعادة الكتــــامة لقسميــن بمدرسة أحمد ","تمويل ذاتي"]
[7]
[8]
[9]
[10]
[11]
[12]
[13]
[14]
[15]
[16]
[17]
[18]
[19]
[20]
[21]
[22]
[23]
[24]
[25]
[26]
[27]
[28]
[29]
[30]

{"sheet":"Feuil1","index":1,"n_rows":134,"n_cols":3,"rows_kept":134,"cut":false,"hidden":true,"merged":[[66,0,66,1],[71,0,72,1]]}
[60,"لــــــوازم و سلــــع"]
[600,"مستحضرات صيدلية",2000]
[601,"تغذية "]
[602,"ألبسة "]
[603,"وقود "]
[604,"محروقات "]
[605,"لوازم صيانة البنايات"]
[606,"لوازم الطرق "]
[607,"لوازم مدرسية "]
[608,"لوازم لصيانة العتاد"]
[609,"لوازم أخرى "]
[61,"مصاريف المستخدمين"]
[610,"أجور المستخدمين الدائمين"]
[611,"أجور المستخدمين المؤقتين"]
[615,"أجور مختلفة "]
[618,"أعباء اجتماعية"]
[62,"ضرائــــــب و رســوم"]
[620,"الضرائب على المرتبات و الأجور "]
[629,"ضرائب و رسوم أخرى "]
[63,"مصاريف على الأملاك العقارية و المنقولة"]
[630,"إيجار و أعباء إيجارية "]
[631,"صيانة و تصليحات في المؤسسات "]
[633,"إقتناء العتاد الصغير و المعدات "]
[634,"كهرباء ، ماء ، غاز "]
[635,"قسط تأمين الأملاك العقارية و المنقولات"]
[639,"مصاريف أخرى للأملاك العقارية و المنقولات "]
[64,"مساهمات و حصص و أداءات لفائدة الغير"]
[640,"حصة شرطة الدولة"]
[641,"حصة المساعدة الطبية المجانية"]
[642,"مساهمة مصلحة النظافة المدرسية"]
[643,"المساهمة في مكافحة الحرائق"]
[645,"مشاركة البلدية "]
[647,"المساهمة في النفقات ما بين البلديات "]
[648,"مصاريف التسيير للفابض "]
[649,"مساهمة و أداءات أخرى لفائدة الغير"]
[65,"منح و إعانات"]
[650,"تزويد حساب الإهتلاكات و المؤونات"]
[651,"منح و معونات "]
[652,"تشجيع التنمية الاقتصادية "]
[655,"منح و جوائز "]
[657,"إعانات لمختلف الهيئات "]
[658,"مساعدات اجتماعية "]
[66,"مصاريف التسيير العام"]
[660,"تعويضات على وظيفة أعضاء "]
[661,"مصاريف الهيئة "]
[662,"لوازم المكاتب الطباعة و التجليد"]
[663,"توثيق عام "]
[664,"مصاريف البريد و المواصلات "]
[665,"مصاريف العقود و المنازعات "]
[666,"أعياد و حفلات "]
[667,"مصاريف النقل "]
[668,"تأمينات على المسؤولية المدنية "]
[669,"نفقات غير متوقعة "]
[67,"مصاريف مالية"]
[670,"فوائد "]
[671,"مصلحة ."]
[672,"مصلحة .."]
[673,"مصلحة …"]
[68,"مساهمة في صندوق الضمان للضرائب "]
[69,"أعباء استثنائية "]
[83,"اقتطاع لنفقات التجهيز و الاستثمار "]
[82,"أعباء السنوات المالية السابقة "]
[820,"عجز مرحل "]
[826,"أعباء السنوات المالية السابقة "]
[8280,"تخفيظات على الرسوم السنوات لسابقة "]
[8281,"قبول بدون قيمة لسندات الإيرادات"]
["مجموع النفقات....................................."]
[850,"فائـــض الإيـــــرادات"]
[]
[]
[]
["الإيـــــــــــــــــــــــرادات"]
[]
[70,"ناتج الإستغــــلال"]
[700,"بيع المنتوجات و الخدمات"]
[701,"حقوق استهلاك الماء"]
[702,"الرسوم على الزيادات و الممنوحات"]
[230,"أشغـــــــال جديـــدة"]
[231,"تصليحــــــــــات كبرى"]
[214,"إقتنــاء المنقوالات  والعتـــاد الكبيـــــــــر"]
[706,"رسوم الدفن "]
[707,"إرسالات إدارية "]
[708,"خدمات مدفوعة"]
[]
[]
[null,"ناتج الأملاك العمومية"]
[710,"بيع المحاصيل "]
[714,"تأجير العقارات و المنقولات"]
[715,"رسوم على الطرق و أماكن التوقف"]
[716,"ترخيص في المقابر "]
[]
[719,"ناتج اخر للأملاك العمومية "]
[72,"ناتج مالـــــــي"]
[720,"مداخيل السندات "]
[721,"مصلحة ."]
[722,"مصلحة .."]
[723,"مصلحة ..."]
[73,"تحصيلات و إعانات و مساهمات"]
[730,"تحصيل من صندوق التعويض للمنح العائلية   "]
[731,"المساهمة في المساعدات الإجتماعية "]
[732,"تحسين الفوائد "]
[733,"إعانات الدولة و الجماعات العمومية "]
[734,"رسوم الحفلات "]
[]
[]
[739,"تحصيلات و إعانات أخرى "]
[74,"ممنوحات صندوق التضامن"]
[740,"منح معادلة التوزيع "]
[741,"معونات للأشخاص "]
[742,"مساعدة المسنين"]
[75,"ضرائب غير مباشرة"]
[750,"الرسم الإجمالي الوحيد على تأدية الخدمات "]
[751,"الرسم على و الرسم الإضافي "]
[752,"الرسم على العروض "]
[753,"الرسم على ألعاب اليانصيب"]
[754,"رسم الإقامة "]
[2]
[]
[76,"ضرائب مباشرة"]
[760,"الرسم العقاري والتطهير"]
[761,"الرسم على النشاط المهني "]
[762,"قسط البلدية من التسديد الجزافي على  الأجور 70 %"]
["762/1","الدفع الجزافي 30%"]
[763,"ضرائب أخرى مباشرة"]
[77,"الرسم الوحيد على (ر.و.ق.م)"]
[79,"ناتج إستثنائي"]
[798,"أشغال التجهيز المنجزة بالإستغلال المباشر "]
[799,"ناتج إستثنائي اخر "]
[82,"ناتج السنوات المالية السابقة"]
[820,"فائض مرحل "]
[827,"ناتج السنوات المالية السابقة "]
[829,"حوالات ملغات أو محذوفة بإنهاء الأجل "]
["مجموع الإيرادات..........................................."]
[850,"فائــــــض النفقـــــــــات"]

{"sheet":"Feuil2","index":2,"n_rows":25,"n_cols":67,"rows_kept":25,"cut":false,"hidden":false,"merged":[[1,0,1,5],[21,2,23,4],[24,2,24,4]]}
["الإعتمادات لكل مشروع",25000000,3000000,4000000]
[" المشاريع"]
[null,"إعادة الكتــــامة لقسميــن بمدرسة أحمد ","إعادة الكتامة لثلاثة أقسام بمدرسة علي","دراسة، متابعة وتهيئة الحديقة "]
[null,593391.72,485520,55758.64,0,0,0,0,0,0,0,0,0,0,0,0,0,0,0,0,0,0,0,0,0,0,0,0,0,0,0,0]
[null,20000,"-","-",0,0,0,0,0,0,0,0,0,0,0,0,0,0,0,0,0,0,0,0,0,0,0,0,0,0,0,0,null,null,null,null,null,null,null,null,null,null,null,null,null,null,null,null,null,null,null,null,null,null,null,0,0,0,0,0,0,0,0,0,0,0,0]
[null,30000,"-","-",0,0,0,0,0,0,0,0,0,0,0,0,0,0,0,0,0,0,0,0,0,0,0,0,0,0,0,0,null,null,null,null,null,null,null,null,null,null,null,null,null,null,null,null,null,null,null,null,null,null,null,0,0,0,0,0,0,0,0,0,0,0,0]
[null,"-","-","-",0,0,0,0,0,0,0,0,0,0,0,0,0,0,0,0,0,0,0,0,0,0,0,0,0,0,0,0,null,null,null,null,null,null,null,null,null,null,null,null,null,null,null,null,null,null,null,null,null,null,null,0,0,0,0,0,0,0,0,0,0,0,0]
[null,"-","-","-",0,0,0,0,0,0,0,0,0,0,0,0,0,0,0,0,0,0,0,0,0,0,0,0,0,0,0,0,null,null,null,null,null,null,null,null,null,null,null,null,null,null,null,null,null,null,null,null,null,null,null,0,0,0,0,0,0,0,0,0,0,0,0]
[null,"-","-","-",0,0,0,0,0,0,0,0,0,0,0,0,0,0,0,0,0,0,0,0,0,0,0,0,0,0,0,0,null,null,null,null,null,null,null,null,null,null,null,null,null,null,null,null,null,null,null,null,null,null,null,0,0,0,0,0,0,0,0,0,0,0,0]
[null,"-","-","-",0,0,0,0,0,0,0,0,0,0,0,0,0,0,0,0,0,0,0,0,0,0,0,0,0,0,0,0,null,null,null,null,null,null,null,null,null,null,null,null,null,null,null,null,null,null,null,null,null,null,null,0,0,0,0,0,0,0,0,0,0,0,0]
[null,"-","-","-",0,0,0,0,0,0,0,0,0,0,0,0,0,0,0,0,0,0,0,0,0,0,0,0,0,0,0,0,null,null,null,null,null,null,null,null,null,null,null,null,null,null,null,null,null,null,null,null,null,null,null,0,0,0,0,0,0,0,0,0,0,0,0]
[null,"-","-","-",0,0,0,0,0,0,0,0,0,0,0,0,0,0,0,0,0,0,0,0,0,0,0,0,0,0,0,0,null,null,null,null,null,null,null,null,null,null,null,null,null,null,null,null,null,null,null,null,null,null,null,0,0,0,0,0,0,0,0,0,0,0,0]
[null,"-","-","-",0,0,0,0,0,0,0,0,0,0,0,0,0,0,0,0,0,0,0,0,0,0,0,0,0,0,0,0,null,null,null,null,null,null,null,null,null,null,null,null,null,null,null,null,null,null,null,null,null,null,null,0,0,0,0,0,0,0,0,0,0,0,0]
[null,"-","-","-",0,0,0,0,0,0,0,0,0,0,0,0,0,0,0,0,0,0,0,0,0,0,0,0,0,0,0,0,null,null,null,null,null,null,null,null,null,null,null,null,null,null,null,null,null,null,null,null,null,null,null,0,0,0,0,0,0,0,0,0,0,0,0]
[null,"-","-","-",0,0,0,0,0,0,0,0,0,0,0,0,0,0,0,0,0,0,0,0,0,0,0,0,0,0,0,0,null,null,null,null,null,null,null,null,null,null,null,null,null,null,null,null,null,null,null,null,null,null,null,0,0,0,0,0,0,0,0,0,0,0,0]
[null,"-","-","-",0,0,0,0,0,0,0,0,0,0,0,0,0,0,0,0,0,0,0,0,0,0,0,0,0,0,0,0,null,null,null,null,null,null,null,null,null,null,null,null,null,null,null,null,null,null,null,null,null,null,null,0,0,0,0,0,0,0,0,0,0,0,0]
["الاجمالي  ",{"$f":"SUM(B4:B16)","v":643391.72},{"$f":"SUM(C4:C16)","v":485520},55758.64,0,0,0,0,0,0,0,0,0,0,0,0,0,0,0,0,0,0,0,0,0,0,0,0,0,0,0,0,null,null,null,null,null,null,null,null,null,null,null,null,null,null,null,null,null,null,null,null,null,null,null,0,0,0,0,0,0,0,0,0,0,0,0]
["الباقي من الإعتمادات لكل مادة",{"$f":"B1-B17","v":24356608.280000001},{"$f":"C1-C17","v":2514480},3944241.36,0,0,0,0,0,0,0,0,0,0,0,0,0,0,0,0,0,0,0,0,0,0,0,0,0,0,0,0,null,null,null,null,null,null,null,null,null,null,null,null,null,null,null,null,null,null,null,null,null,null,null,0,0,0,0,0,0,0,0,0,0,0,0]
["النسبة المؤوية",{"$f":"(B17/B1)*B20","v":2.57356688E-2},{"$f":"(C18/C1)*C20","v":0},0,{"$error":"#DIV/0!"},{"$error":"#DIV/0!"},{"$error":"#DIV/0!"},{"$error":"#DIV/0!"},{"$error":"#DIV/0!"},{"$error":"#DIV/0!"},{"$error":"#DIV/0!"},{"$error":"#DIV/0!"},{"$error":"#DIV/0!"},{"$error":"#DIV/0!"},{"$error":"#DIV/0!"},{"$error":"#DIV/0!"},{"$error":"#DIV/0!"},{"$error":"#DIV/0!"},{"$error":"#DIV/0!"},{"$error":"#DIV/0!"},{"$error":"#DIV/0!"},{"$error":"#DIV/0!"},{"$error":"#DIV/0!"},{"$error":"#DIV/0!"},{"$error":"#DIV/0!"},{"$error":"#DIV/0!"},{"$error":"#DIV/0!"},{"$error":"#DIV/0!"},{"$error":"#DIV/0!"},{"$error":"#DIV/0!"},{"$error":"#DIV/0!"},{"$error":"#DIV/0!"},null,null,null,null,null,null,null,null,null,null,null,null,null,null,null,null,null,null,null,null,null,null,null,{"$error":"#DIV/0!"},{"$error":"#DIV/0!"},{"$error":"#DIV/0!"},{"$error":"#DIV/0!"},{"$error":"#DIV/0!"},{"$error":"#DIV/0!"},{"$error":"#DIV/0!"},{"$error":"#DIV/0!"},{"$error":"#DIV/0!"},{"$error":"#DIV/0!"},{"$error":"#DIV/0!"},{"$error":"#DIV/0!"}]
[null,1,null,null,null,null,null,null,null,null,null,null,null,null,null,null,null,null,null,null,null,null,null,null,null,null,null,null,null,null,null,null,null,null,null,null,null,null,null,null,null,null,null,null,null,null,null,null,null,null,null,null,null,null,null,0,0,0,0,0,0,0,0,0,0,0,0]
[]
[null,null,"أريد معادلة  ترحيل المبالغ من  صفحة العملاء إلى FEUIL 2  على حسب تسمية البرنامج  كما هو موضح في FEUIL2"]
[]
[]
[null,null,"أناجربت هذه الدالة ولم تنجح في B4  ساعدوني في حل هذه الدالة حتى تظهرقيم البرامج عل حسب كل برنامج وشكرا"]